[Event "*** Titled Tuesday 3|2 Blitz"]
[Site "Chess.com"]
[Date "2016.06.07"]
[Round "8"]
[White "Evgeny_Levin"]
[Black "jcibarra"]
[Result "1/2-1/2"]
[WhiteElo "2699"]
[BlackElo "2649"]
[TimeControl "180+2"]
[EndTime "18:43:45 PDT"]
[Termination "Game drawn by repetition"]

1. d4 {[%clk 0:02:54.3]} 1... Nf6 {[%clk 0:02:58.9]} 2. Nf3 {[%clk 0:02:53.7]}
2... g6 {[%clk 0:02:59.5]} 3. Bg5 {[%clk 0:02:54.2]} 3... Bg7 {[%clk 0:03:00]}
4. Nbd2 {[%clk 0:02:55.3]} 4... O-O {[%clk 0:03:01.1]} 5. c3 {[%clk 0:02:54.6]}
5... d6 {[%clk 0:03:02.1]} 6. h3 {[%clk 0:02:54.8]} 6... Nbd7 {[%clk 0:02:56.3]}
7. e4 {[%clk 0:02:53.9]} 7... e5 {[%clk 0:02:50.7]} 8. Bd3 {[%clk 0:02:54.7]}
8... h6 {[%clk 0:02:47.9]} 9. Be3 {[%clk 0:02:54.6]} 9... b6 {[%clk 0:02:46.8]}
10. O-O {[%clk 0:02:54.9]} 10... Bb7 {[%clk 0:02:47.9]} 11. Re1 {[%clk
0:02:54.7]} 11... Re8 {[%clk 0:02:44.3]} 12. Qc2 {[%clk 0:02:55.4]} 12... Nh5
{[%clk 0:02:41.9]} 13. Bf1 {[%clk 0:02:45.9]} 13... Qf6 {[%clk 0:02:38.5]} 14.
a4 {[%clk 0:02:41.7]} 14... a6 {[%clk 0:02:36.9]} 15. Rad1 {[%clk 0:02:22.3]}
15... Rad8 {[%clk 0:02:36.1]} 16. Nc4 {[%clk 0:02:10.5]} 16... exd4 {[%clk
0:02:33.9]} 17. Bxd4 {[%clk 0:02:08.4]} 17... Qe7 {[%clk 0:02:31]} 18. Nfd2
{[%clk 0:01:51.5]} 18... Nf4 {[%clk 0:02:26.8]} 19. g3 {[%clk 0:01:44.1]} 19...
Ne6 {[%clk 0:02:25.4]} 20. Bxg7 {[%clk 0:01:43.3]} 20... Nxg7 {[%clk 0:02:26]}
21. Ne3 {[%clk 0:01:42.4]} 21... Nf6 {[%clk 0:02:24.7]} 22. Ng4 {[%clk
0:01:32.3]} 22... Nxg4 {[%clk 0:02:21.9]} 23. hxg4 {[%clk 0:01:34.2]} 23... Qg5
{[%clk 0:02:07.5]} 24. Bh3 {[%clk 0:01:33.4]} 24... h5 {[%clk 0:02:02]} 25. gxh5
{[%clk 0:01:27.6]} 25... Nxh5 {[%clk 0:02:03.9]} 26. Nf3 {[%clk 0:01:19.9]}
26... Qf6 {[%clk 0:02:04.1]} 27. Bg2 {[%clk 0:01:21]} 27... Ng7 {[%clk
0:02:02.2]} 28. Re3 {[%clk 0:01:11.6]} 28... a5 {[%clk 0:01:58.5]} 29. Rde1
{[%clk 0:01:10.8]} 29... Re7 {[%clk 0:01:52.9]} 30. e5 {[%clk 0:01:01]} 30...
dxe5 {[%clk 0:01:46.8]} 31. Rxe5 {[%clk 0:00:52.6]} 31... Rde8 {[%clk
0:01:41.6]} 32. Rxe7 {[%clk 0:00:51.9]} 32... Rxe7 {[%clk 0:01:43.5]} 33. Rxe7
{[%clk 0:00:47.5]} 33... Qxe7 {[%clk 0:01:45.4]} 34. Nd4 {[%clk 0:00:47]} 34...
Bxg2 {[%clk 0:01:42.6]} 35. Kxg2 {[%clk 0:00:48.7]} 35... Qd7 {[%clk 0:01:37.7]}
36. b3 {[%clk 0:00:44.8]} 36... Qd5+ {[%clk 0:01:36.4]} 37. Kg1 {[%clk
0:00:44.5]} 37... Ne6 {[%clk 0:01:37.4]} 38. Nxe6 {[%clk 0:00:45.1]} 38... Qxe6
{[%clk 0:01:39.3]} 39. Qd1 {[%clk 0:00:45.4]} 39... Kh7 {[%clk 0:01:34.9]} 40.
Kg2 {[%clk 0:00:45]} 40... Qe4+ {[%clk 0:01:34.8]} 41. Kg1 {[%clk 0:00:44.7]}
41... Qe6 {[%clk 0:01:35.2]} 42. Kg2 {[%clk 0:00:45.6]} 42... Qe4+ {[%clk
0:01:35.9]} 43. Kg1 {[%clk 0:00:46.9]} 43... Kg7 {[%clk 0:01:31.6]} 44. Kh2
{[%clk 0:00:40.8]} 44... Qe5 {[%clk 0:01:31]} 45. Qd2 {[%clk 0:00:36.7]} 45...
Kf6 {[%clk 0:01:26.7]} 46. b4 {[%clk 0:00:35]} 46... Ke7 {[%clk 0:01:25.5]} 47.
Kg1 {[%clk 0:00:33.6]} 47... Qd6 {[%clk 0:01:25.4]} 48. Qe2+ {[%clk 0:00:32]}
48... Qe6 {[%clk 0:01:26]} 49. Qd2 {[%clk 0:00:22.7]} 49... Qe5 {[%clk
0:01:22.9]} 50. Kh2 {[%clk 0:00:20]} 50... Qe4 {[%clk 0:01:15.8]} 51. bxa5
{[%clk 0:00:19.7]} 51... bxa5 {[%clk 0:01:15.8]} 52. Qg5+ {[%clk 0:00:20.5]}
52... Kd7 {[%clk 0:01:11.2]} 53. Qxa5 {[%clk 0:00:21.7]} 53... Qf3 {[%clk
0:01:08.8]} 54. Qb5+ {[%clk 0:00:21.8]} 54... Kc8 {[%clk 0:01:01.3]} 55. Qc5
{[%clk 0:00:21.5]} 55... Kb7 {[%clk 0:01:00.3]} 56. a5 {[%clk 0:00:22.2]} 56...
Ka6 {[%clk 0:00:55.3]} 57. Kg1 {[%clk 0:00:20.8]} 57... Qd1+ {[%clk 0:00:52.9]}
58. Kg2 {[%clk 0:00:21.1]} 58... Qd7 {[%clk 0:00:51.8]} 59. c4 {[%clk
0:00:20.5]} 59... f6 {[%clk 0:00:46.7]} 60. Kg1 {[%clk 0:00:16.7]} 60... Qd1+
{[%clk 0:00:45.1]} 61. Kg2 {[%clk 0:00:17.7]} 61... Qd7 {[%clk 0:00:45.9]} 62.
Qb4 {[%clk 0:00:17.1]} 62... Qc6+ {[%clk 0:00:44.1]} 63. Kg1 {[%clk 0:00:17.1]}
63... f5 {[%clk 0:00:41.4]} 64. Kh2 {[%clk 0:00:15.8]} 64... g5 {[%clk
0:00:39.4]} 65. Qf8 {[%clk 0:00:12.7]} 65... Qf3 {[%clk 0:00:35.9]} 66. Kg1
{[%clk 0:00:10.3]} 66... Kxa5 {[%clk 0:00:29.4]} 67. Qc5+ {[%clk 0:00:10.1]}
67... Ka4 {[%clk 0:00:28.3]} 68. Qxc7 {[%clk 0:00:11.3]} 68... Kb4 {[%clk
0:00:26.2]} 69. c5 {[%clk 0:00:11.4]} 69... Qd1+ {[%clk 0:00:24.8]} 70. Kg2
{[%clk 0:00:11.7]} 70... Qd5+ {[%clk 0:00:25.4]} 71. Kh2 {[%clk 0:00:12.5]}
71... Qxc5 {[%clk 0:00:20.8]} 72. Qb7+ {[%clk 0:00:12.7]} 72... Kc4 {[%clk
0:00:19.4]} 73. Qf7+ {[%clk 0:00:13.5]} 73... Kd3 {[%clk 0:00:18.5]} 74. Kg1
{[%clk 0:00:11.5]} 74... Ke4 {[%clk 0:00:17.6]} 75. Qe6+ {[%clk 0:00:12.1]}
75... Kf3 {[%clk 0:00:16.2]} 76. Qe1 {[%clk 0:00:12.2]} 76... Qd4 {[%clk
0:00:15.7]} 77. Qf1 {[%clk 0:00:12.9]} 77... Ke4 {[%clk 0:00:16.3]} 78. Qe2+
{[%clk 0:00:12.7]} 78... Kd5 {[%clk 0:00:17.1]} 79. Qb5+ {[%clk 0:00:13.8]}
79... Ke6 {[%clk 0:00:17.5]} 80. Qa6+ {[%clk 0:00:14.6]} 80... Kf7 {[%clk
0:00:18]} 81. Qb7+ {[%clk 0:00:15.6]} 81... Kg6 {[%clk 0:00:19.2]} 82. Qc6+
{[%clk 0:00:17.1]} 82... Kf7 {[%clk 0:00:20.4]} 83. Qb7+ {[%clk 0:00:18]} 83...
Kg6 {[%clk 0:00:21.7]} 84. Qc6+ {[%clk 0:00:19.3]} 84... Kf7 {[%clk 0:00:22.4]}
85. Qb7+ {[%clk 0:00:20.5]} 85... Kg6 {[%clk 0:00:23.7]} 86. Qc6+ {[%clk
0:00:21.7]} 86... Kf7 {[%clk 0:00:24.8]} 87. Qb7+ {[%clk 0:00:22]} 1/2-1/2

[Event "*** Titled Tuesday 3|2 Blitz"]
[Site "Chess.com"]
[Date "2016.06.07"]
[Round "8"]
[White "oskariot"]
[Black "1random"]
[Result "0-1"]
[WhiteElo "2402"]
[BlackElo "2129"]
[TimeControl "180+2"]
[EndTime "18:44:04 PDT"]
[Termination "1random won by checkmate"]

1. e4 {[%clk 0:03:00.4]} 1... Nf6 {[%clk 0:02:59]} 2. e5 {[%clk 0:03:01.4]} 2...
Nd5 {[%clk 0:02:59.5]} 3. d4 {[%clk 0:03:03.3]} 3... d6 {[%clk 0:03:00.1]} 4.
Nf3 {[%clk 0:03:05.2]} 4... g6 {[%clk 0:03:00.6]} 5. Bc4 {[%clk 0:03:06]} 5...
Nb6 {[%clk 0:03:01.2]} 6. Bb3 {[%clk 0:03:07]} 6... Bg7 {[%clk 0:03:02.1]} 7.
O-O {[%clk 0:03:07.9]} 7... O-O {[%clk 0:03:02.7]} 8. h3 {[%clk 0:03:08.6]} 8...
Nc6 {[%clk 0:03:03.4]} 9. exd6 {[%clk 0:03:09.1]} 9... cxd6 {[%clk 0:03:03.7]}
10. c4 {[%clk 0:03:10.5]} 10... e5 {[%clk 0:03:00.8]} 11. dxe5 {[%clk
0:02:55.6]} 11... dxe5 {[%clk 0:03:00.7]} 12. c5 {[%clk 0:02:56.9]} 12... Nd7
{[%clk 0:02:58.2]} 13. Be3 {[%clk 0:02:57.7]} 13... Qe7 {[%clk 0:02:57.3]} 14.
Nc3 {[%clk 0:02:21.1]} 14... Nxc5 {[%clk 0:02:47.9]} 15. Nd5 {[%clk 0:02:20.7]}
15... Qd6 {[%clk 0:02:48.7]} 16. Rc1 {[%clk 0:02:12.4]} 16... Nxb3 {[%clk
0:02:46.7]} 17. Qxb3 {[%clk 0:02:13.4]} 17... Be6 {[%clk 0:02:45.9]} 18. Rfd1
{[%clk 0:02:11.5]} 18... Nd4 {[%clk 0:02:44.6]} 19. Bxd4 {[%clk 0:01:17.2]}
19... exd4 {[%clk 0:02:36.5]} 20. Nxd4 {[%clk 0:00:49.5]} 20... Bxd5 {[%clk
0:02:33.1]} 21. Qa4 {[%clk 0:00:49.4]} 21... Rfd8 {[%clk 0:02:19.7]} 22. Nb5
{[%clk 0:00:49.7]} 22... Qe5 {[%clk 0:02:12.4]} 23. Nc7 {[%clk 0:00:49.1]} 23...
Rac8 {[%clk 0:02:12]} 24. Nxd5 {[%clk 0:00:49.6]} 24... Rxc1 {[%clk 0:02:12.8]}
25. Rxc1 {[%clk 0:00:45.2]} 25... Qxd5 {[%clk 0:02:13.1]} 26. Qxa7 {[%clk
0:00:46.5]} 26... Bxb2 {[%clk 0:02:10.8]} 27. Rb1 {[%clk 0:00:47.6]} 27... Bd4
{[%clk 0:02:10.3]} 28. Qxb7 {[%clk 0:00:46.9]} 28... Qxb7 {[%clk 0:02:08.3]} 29.
Rxb7 {[%clk 0:00:48.1]} 29... Ra8 {[%clk 0:02:09.8]} 30. Rd7 {[%clk 0:00:49.1]}
30... Bg7 {[%clk 0:02:07.7]} 31. Rd2 {[%clk 0:00:49.6]} 31... h5 {[%clk
0:02:09]} 32. Rc2 {[%clk 0:00:50.6]} 32... Be5 {[%clk 0:02:06.2]} 33. g3 {[%clk
0:00:50.8]} 33... Kg7 {[%clk 0:02:06.5]} 34. Kg2 {[%clk 0:00:52.1]} 34... Kf6
{[%clk 0:02:07.9]} 35. h4 {[%clk 0:00:53.3]} 35... Kf5 {[%clk 0:02:08.7]} 36.
Rd2 {[%clk 0:00:54.3]} 36... Ra7 {[%clk 0:02:09.4]} 37. Rc2 {[%clk 0:00:55.2]}
37... Bd4 {[%clk 0:02:07.1]} 38. Rd2 {[%clk 0:00:55.8]} 38... Ke4 {[%clk
0:02:08.6]} 39. Re2+ {[%clk 0:00:56.1]} 39... Kd3 {[%clk 0:02:09.2]} 40. Kf3
{[%clk 0:00:46.7]} 40... f5 {[%clk 0:01:53.3]} 41. Re1 {[%clk 0:00:33.3]} 41...
Rxa2 {[%clk 0:01:52.5]} 42. Rd1+ {[%clk 0:00:34.8]} 42... Rd2 {[%clk 0:01:52.4]}
43. Rf1 {[%clk 0:00:34.7]} 43... Bc5 {[%clk 0:01:46.8]} 44. Kg2 {[%clk
0:00:35.2]} 44... Rxf2+ {[%clk 0:01:23.6]} 45. Rxf2 {[%clk 0:00:34.6]} 45...
Bxf2 {[%clk 0:01:25.5]} 46. Kxf2 {[%clk 0:00:35.8]} 46... Ke4 {[%clk 0:01:27.1]}
47. Ke2 {[%clk 0:00:37]} 47... f4 {[%clk 0:01:28.6]} 48. Kf2 {[%clk 0:00:38.6]}
48... fxg3+ {[%clk 0:01:24.1]} 49. Kxg3 {[%clk 0:00:40.5]} 49... Ke3 {[%clk
0:01:25.6]} 50. Kh3 {[%clk 0:00:42]} 50... Kf3 {[%clk 0:01:27.1]} 51. Kh2 {[%clk
0:00:42.6]} 51... Kg4 {[%clk 0:01:29]} 52. Kg2 {[%clk 0:00:44]} 52... Kxh4
{[%clk 0:01:30.9]} 53. Kh2 {[%clk 0:00:45.9]} 53... Kg4 {[%clk 0:01:32.3]} 54.
Kg2 {[%clk 0:00:47.8]} 54... h4 {[%clk 0:01:33.5]} 55. Kh2 {[%clk 0:00:49.7]}
55... h3 {[%clk 0:01:34]} 56. Kh1 {[%clk 0:00:50.9]} 56... Kg3 {[%clk
0:01:35.5]} 57. Kg1 {[%clk 0:00:52.8]} 57... g5 {[%clk 0:01:37.4]} 58. Kh1
{[%clk 0:00:54.7]} 58... g4 {[%clk 0:01:39.1]} 59. Kg1 {[%clk 0:00:56.6]} 59...
Kf3 {[%clk 0:01:40.3]} 60. Kh1 {[%clk 0:00:58.5]} 60... Kf2 {[%clk 0:01:40.9]}
61. Kh2 {[%clk 0:00:59]} 61... g3+ {[%clk 0:01:41.6]} 62. Kxh3 {[%clk
0:01:00.9]} 62... g2 {[%clk 0:01:43.1]} 63. Kg4 {[%clk 0:01:02.8]} 63... g1=Q+
{[%clk 0:01:43.6]} 64. Kf4 {[%clk 0:01:04.7]} 64... Qa1 {[%clk 0:01:44]} 65. Ke4
{[%clk 0:01:03.6]} 65... Qa8+ {[%clk 0:01:45.9]} 66. Kd3 {[%clk 0:01:05.5]}
66... Qh8 {[%clk 0:01:47.4]} 67. Kc4 {[%clk 0:01:07.4]} 67... Qh1 {[%clk
0:01:49.3]} 68. Kc5 {[%clk 0:01:08.4]} 68... Kg3 {[%clk 0:01:50.2]} 69. Kd6
{[%clk 0:01:10.3]} 69... Kf4 {[%clk 0:01:52.1]} 70. Ke6 {[%clk 0:01:11.2]} 70...
Ke4 {[%clk 0:01:54]} 71. Kf6 {[%clk 0:01:12.3]} 71... Qa1+ {[%clk 0:01:55.7]}
72. Ke6 {[%clk 0:01:13.5]} 72... Qa8 {[%clk 0:01:57.6]} 73. Kd6 {[%clk
0:01:14.4]} 73... Qh8 {[%clk 0:01:59.5]} 74. Kc5 {[%clk 0:01:15.6]} 74... Qe5+
{[%clk 0:02:00.6]} 75. Kc6 {[%clk 0:01:16.7]} 75... Kd4 {[%clk 0:02:01.2]} 76.
Kd7 {[%clk 0:01:10.4]} 76... Kc5 {[%clk 0:01:59.6]} 77. Kc8 {[%clk 0:01:10.8]}
77... Qe7 {[%clk 0:01:58.2]} 78. Kb8 {[%clk 0:01:11.6]} 78... Qh7 {[%clk
0:01:58.2]} 79. Kc8 {[%clk 0:01:11.2]} 79... Kd6 {[%clk 0:01:58.8]} 80. Kb8
{[%clk 0:01:12.2]} 80... Kc6 {[%clk 0:01:59.6]} 81. Ka8 {[%clk 0:01:13.4]} 81...
Qh8+ {[%clk 0:02:01]} 82. Ka7 {[%clk 0:01:13.8]} 82... Qa1+ {[%clk 0:02:02.5]}
83. Kb8 {[%clk 0:01:14.4]} 83... Qg7 {[%clk 0:02:01.5]} 84. Ka8 {[%clk
0:01:13.5]} 84... Kb6 {[%clk 0:02:02]} 85. Kb8 {[%clk 0:00:58.1]} 85... Qd7
{[%clk 0:01:10.2]} 86. Ka8 {[%clk 0:00:57.3]} 86... Qa4+ {[%clk 0:01:07.8]} 87.
Kb8 {[%clk 0:00:58]} 87... Qc4 {[%clk 0:01:08.8]} 88. Ka8 {[%clk 0:00:58.7]}
88... Qa2+ {[%clk 0:01:10.3]} 89. Kb8 {[%clk 0:00:59.6]} 89... Qc2 {[%clk
0:01:11.7]} 90. Ka8 {[%clk 0:01:00.6]} 90... Qc1 {[%clk 0:01:12.3]} 91. Kb8
{[%clk 0:01:02.5]} 91... Qc3 {[%clk 0:01:13.8]} 92. Ka8 {[%clk 0:01:04.3]} 92...
Qc4 {[%clk 0:01:07.6]} 93. Kb8 {[%clk 0:01:06.2]} 93... Qc5 {[%clk 0:01:07.8]}
94. Ka8 {[%clk 0:01:08.1]} 94... Qc6+ {[%clk 0:01:08.2]} 95. Kb8 {[%clk
0:01:10]} 95... Qc7+ {[%clk 0:01:08.9]} 96. Ka8 {[%clk 0:01:11.8]} 96... Qd7
{[%clk 0:01:10.1]} 97. Kb8 {[%clk 0:01:13.7]} 97... Qe7 {[%clk 0:01:10.9]} 98.
Ka8 {[%clk 0:01:15.6]} 98... Kc7 {[%clk 0:01:11]} 99. Ka7 {[%clk 0:01:15.3]}
99... Qc5+ {[%clk 0:01:10.1]} 100. Ka8 {[%clk 0:01:16.2]} 100... Qb5 {[%clk
0:01:09.9]} 101. Ka7 {[%clk 0:01:17.1]} 101... Qb8+ {[%clk 0:01:10.3]} 102. Ka6
{[%clk 0:01:17.9]} 102... Qb4 {[%clk 0:01:12.2]} 103. Ka7 {[%clk 0:01:18.7]}
103... Qd4+ {[%clk 0:01:10.5]} 104. Ka8 {[%clk 0:01:15.4]} 104... Qh4 {[%clk
0:01:08.4]} 105. Ka7 {[%clk 0:01:16.2]} 105... Qh6 {[%clk 0:01:09.6]} 106. Ka8
{[%clk 0:01:17.2]} 106... Qg6 {[%clk 0:01:10.6]} 107. Ka7 {[%clk 0:01:18.2]}
107... Qf6 {[%clk 0:01:12.1]} 108. Ka8 {[%clk 0:01:19.3]} 108... Qe6 {[%clk
0:01:13.6]} 109. Ka7 {[%clk 0:01:20.3]} 109... Qd6 {[%clk 0:01:15]} 110. Ka8
{[%clk 0:01:21.4]} 110... Qc6+ {[%clk 0:01:16.4]} 111. Ka7 {[%clk 0:01:22.5]}
111... Qb6+ {[%clk 0:01:17.2]} 112. Ka8 {[%clk 0:01:23.5]} 112... Qa5# {[%clk
0:01:16.5]} 0-1

[Event "*** Titled Tuesday 3|2 Blitz"]
[Site "Chess.com"]
[Date "2016.06.07"]
[Round "9"]
[White "Quiet_Desperation"]
[Black "chesstatour"]
[Result "0-1"]
[WhiteElo "2270"]
[BlackElo "2016"]
[TimeControl "180+2"]
[EndTime "18:47:35 PDT"]
[Termination "chesstatour won by checkmate"]

1. e4 {[%clk 0:03:01.9]} 1... c6 {[%clk 0:02:59.2]} 2. d4 {[%clk 0:03:01.5]}
2... d5 {[%clk 0:03:00.7]} 3. e5 {[%clk 0:03:03]} 3... Bf5 {[%clk 0:03:00.8]} 4.
Nf3 {[%clk 0:03:04.6]} 4... e6 {[%clk 0:03:02]} 5. Be2 {[%clk 0:03:06.2]} 5...
c5 {[%clk 0:03:02.2]} 6. O-O {[%clk 0:03:07.9]} 6... Nc6 {[%clk 0:03:00.6]} 7.
c3 {[%clk 0:03:09.1]} 7... cxd4 {[%clk 0:02:56.4]} 8. Nxd4 {[%clk 0:03:09.4]}
8... Nxd4 {[%clk 0:02:55]} 9. cxd4 {[%clk 0:03:06.7]} 9... Ne7 {[%clk
0:02:56.4]} 10. Nc3 {[%clk 0:03:06.9]} 10... Nc6 {[%clk 0:02:56.9]} 11. Be3
{[%clk 0:03:08.1]} 11... Be7 {[%clk 0:02:53.2]} 12. f4 {[%clk 0:03:09.4]} 12...
O-O {[%clk 0:02:41.7]} 13. g4 {[%clk 0:03:10.3]} 13... Be4 {[%clk 0:02:42.8]}
14. Nxe4 {[%clk 0:03:11.5]} 14... dxe4 {[%clk 0:02:44.7]} 15. f5 {[%clk
0:03:08.5]} 15... Bg5 {[%clk 0:02:33.2]} 16. Bxg5 {[%clk 0:03:06.9]} 16... Qxg5
{[%clk 0:02:35.1]} 17. f6 {[%clk 0:03:05.8]} 17... Qe3+ {[%clk 0:02:30.6]} 18.
Kh1 {[%clk 0:03:06.7]} 18... Nxd4 {[%clk 0:02:19.9]} 19. Bc4 {[%clk 0:03:07.5]}
19... Rad8 {[%clk 0:02:08.9]} 20. Qa4 {[%clk 0:03:00.8]} 20... b5 {[%clk
0:01:53.9]} 21. Bxb5 {[%clk 0:03:00.5]} 21... Nxb5 {[%clk 0:01:54.8]} 22. Qxb5
{[%clk 0:03:01.8]} 22... Rd2 {[%clk 0:01:56.1]} 23. fxg7 {[%clk 0:02:55.4]}
23... Kxg7 {[%clk 0:01:53.8]} 24. Rae1 {[%clk 0:02:48.5]} 24... Qh3 {[%clk
0:01:52.2]} 25. Re2 {[%clk 0:02:42.9]} 25... Qxf1# {[%clk 0:01:51.7]} 0-1

[Event "*** Titled Tuesday 3|2 Blitz"]
[Site "Chess.com"]
[Date "2016.06.07"]
[Round "9"]
[White "Fandorine"]
[Black "MinhGTrAn"]
[Result "1/2-1/2"]
[WhiteElo "2620"]
[BlackElo "2662"]
[TimeControl "180+2"]
[EndTime "18:48:29 PDT"]
[Termination "Game drawn by agreement"]

1. e4 {[%clk 0:03:01.9]} 1... c5 {[%clk 0:03:00.2]} 2. Nf3 {[%clk 0:03:02.6]}
2... d6 {[%clk 0:03:00.9]} 3. d4 {[%clk 0:03:03.6]} 3... cxd4 {[%clk 0:03:02.8]}
4. Qxd4 {[%clk 0:03:05.2]} 4... Nc6 {[%clk 0:02:59.2]} 5. Bb5 {[%clk 0:03:05.5]}
5... Bd7 {[%clk 0:02:59]} 6. Qd3 {[%clk 0:03:06.9]} 6... Nf6 {[%clk 0:02:59.8]}
7. c4 {[%clk 0:03:08.1]} 7... g6 {[%clk 0:02:54.4]} 8. O-O {[%clk 0:03:08]} 8...
Bg7 {[%clk 0:02:55.5]} 9. Nc3 {[%clk 0:03:08.9]} 9... O-O {[%clk 0:02:56.8]} 10.
h3 {[%clk 0:03:10.5]} 10... Rc8 {[%clk 0:02:57.6]} 11. Be3 {[%clk 0:03:11]}
11... a6 {[%clk 0:02:54.1]} 12. Bxc6 {[%clk 0:03:12.2]} 12... Bxc6 {[%clk
0:02:50.7]} 13. Nd4 {[%clk 0:03:13.3]} 13... Nd7 {[%clk 0:02:48.4]} 14. Rac1
{[%clk 0:03:14.2]} 14... Nc5 {[%clk 0:02:40.9]} 15. Qc2 {[%clk 0:03:15.4]} 15...
Ne6 {[%clk 0:02:42.5]} 16. Qd2 {[%clk 0:03:16.8]} 16... Qa5 {[%clk 0:02:26.5]}
17. Rfd1 {[%clk 0:02:52.9]} 17... Rfe8 {[%clk 0:02:20.5]} 18. Nxe6 {[%clk
0:02:36.8]} 18... fxe6 {[%clk 0:02:22.4]} 19. Bd4 {[%clk 0:02:37.6]} 19... Bxd4
{[%clk 0:02:11.2]} 20. Qxd4 {[%clk 0:02:39.5]} 20... e5 {[%clk 0:02:12.8]} 21.
Qd2 {[%clk 0:02:34.7]} 21... Kg7 {[%clk 0:02:05.8]} 22. a3 {[%clk 0:02:21.7]}
22... b5 {[%clk 0:02:04.1]} 23. cxb5 {[%clk 0:02:20.9]} 23... axb5 {[%clk
0:02:05.5]} 1/2-1/2

[Event "*** Titled Tuesday 3|2 Blitz"]
[Site "Chess.com"]
[Date "2016.06.07"]
[Round "9"]
[White "Yaacovn"]
[Black "Danirod"]
[Result "0-1"]
[WhiteElo "2600"]
[BlackElo "2458"]
[TimeControl "180+2"]
[EndTime "18:49:25 PDT"]
[Termination "Danirod won by resignation"]

1. d4 {[%clk 0:03:01.9]} 1... Nf6 {[%clk 0:03:00.8]} 2. Nf3 {[%clk 0:03:03.4]}
2... e6 {[%clk 0:03:01.8]} 3. c4 {[%clk 0:03:04.9]} 3... Bb4+ {[%clk 0:03:02.4]}
4. Bd2 {[%clk 0:03:06.1]} 4... Qe7 {[%clk 0:03:03.4]} 5. g3 {[%clk 0:03:07.5]}
5... Bxd2+ {[%clk 0:03:04.3]} 6. Qxd2 {[%clk 0:03:08.7]} 6... Nc6 {[%clk
0:03:04.8]} 7. Nc3 {[%clk 0:03:10]} 7... d5 {[%clk 0:03:05.7]} 8. Bg2 {[%clk
0:03:09.7]} 8... O-O {[%clk 0:03:05.6]} 9. cxd5 {[%clk 0:03:10.6]} 9... exd5
{[%clk 0:03:06.6]} 10. O-O {[%clk 0:03:12]} 10... Bf5 {[%clk 0:03:07.5]} 11. Qf4
{[%clk 0:03:12.8]} 11... Be4 {[%clk 0:02:59.2]} 12. Ne5 {[%clk 0:03:12.5]} 12...
Nxd4 {[%clk 0:02:55.2]} 13. Rad1 {[%clk 0:03:02.5]} 13... Ne6 {[%clk 0:02:36.5]}
14. Qh4 {[%clk 0:03:02.7]} 14... Bxg2 {[%clk 0:02:34.2]} 15. Kxg2 {[%clk
0:03:03.7]} 15... Rfd8 {[%clk 0:02:32.9]} 16. Ng4 {[%clk 0:03:01.4]} 16... g5
{[%clk 0:02:30.1]} 17. Nxf6+ {[%clk 0:02:58.1]} 17... Qxf6 {[%clk 0:02:31.1]}
18. Qb4 {[%clk 0:02:58.9]} 18... d4 {[%clk 0:02:28.7]} 19. Ne4 {[%clk
0:02:57.8]} 19... Qe5 {[%clk 0:02:29.6]} 20. Qxb7 {[%clk 0:02:52.9]} 20... Rab8
{[%clk 0:02:30.4]} 21. Qc6 {[%clk 0:02:54.1]} 21... Rxb2 {[%clk 0:02:26.8]} 22.
Kg1 {[%clk 0:02:22]} 22... Rxe2 {[%clk 0:02:16.6]} 23. Rfe1 {[%clk 0:02:19.3]}
23... Rxe1+ {[%clk 0:02:17.5]} 24. Rxe1 {[%clk 0:02:21.2]} 24... d3 {[%clk
0:02:17.9]} 25. Qc1 {[%clk 0:02:17.5]} 25... Nd4 {[%clk 0:01:35.8]} 26. Kg2
{[%clk 0:02:15.6]} 26... h6 {[%clk 0:01:32.5]} 27. Qc4 {[%clk 0:01:41.4]} 27...
d2 {[%clk 0:01:17.7]} 0-1

[Event "*** Titled Tuesday 3|2 Blitz"]
[Site "Chess.com"]
[Date "2016.06.07"]
[Round "9"]
[White "Viaje"]
[Black "akinov-akinseye"]
[Result "0-1"]
[WhiteElo "2089"]
[BlackElo "1729"]
[TimeControl "180+2"]
[EndTime "18:49:44 PDT"]
[Termination "akinov-akinseye won by resignation"]

1. d4 {[%clk 0:03:01.9]} 1... Nf6 {[%clk 0:02:57.2]} 2. c4 {[%clk 0:03:03.3]}
2... e5 {[%clk 0:02:55.9]} 3. dxe5 {[%clk 0:03:03.4]} 3... Ng4 {[%clk
0:02:53.7]} 4. Bf4 {[%clk 0:03:04.9]} 4... g5 {[%clk 0:02:50.5]} 5. Bg3 {[%clk
0:03:06]} 5... Nc6 {[%clk 0:02:45.7]} 6. Nf3 {[%clk 0:03:06.8]} 6... Bg7 {[%clk
0:02:38.9]} 7. h4 {[%clk 0:03:07]} 7... Ngxe5 {[%clk 0:02:32]} 8. Nxe5 {[%clk
0:02:57.5]} 8... Nxe5 {[%clk 0:02:29.9]} 9. Nc3 {[%clk 0:02:59]} 9... g4 {[%clk
0:02:26.5]} 10. h5 {[%clk 0:02:58]} 10... h6 {[%clk 0:02:24.8]} 11. Bh4 {[%clk
0:02:58.3]} 11... Bf6 {[%clk 0:02:21.4]} 12. Bxf6 {[%clk 0:02:58]} 12... Qxf6
{[%clk 0:02:19.6]} 13. Nd5 {[%clk 0:02:58.8]} 13... Qd8 {[%clk 0:02:16.7]} 14.
Qd4 {[%clk 0:02:56]} 14... d6 {[%clk 0:02:12]} 15. f4 {[%clk 0:02:56.4]} 15...
gxf3 {[%clk 0:02:09.6]} 16. exf3 {[%clk 0:02:56.6]} 16... c6 {[%clk 0:02:05.4]}
17. Nc3 {[%clk 0:02:52.5]} 17... Qb6 {[%clk 0:02:01.2]} 18. Qxd6 {[%clk
0:02:46.9]} 18... Qe3+ {[%clk 0:01:57.3]} 19. Be2 {[%clk 0:02:46]} 19... Nxc4
{[%clk 0:01:53.7]} 20. Qf6 {[%clk 0:02:38.8]} 20... Rg8 {[%clk 0:01:49]} 21. Rd1
{[%clk 0:02:26.1]} 21... Be6 {[%clk 0:01:44.4]} 22. Ne4 {[%clk 0:01:57.4]} 22...
Rxg2 {[%clk 0:01:38.5]} 23. Nd6+ {[%clk 0:01:46.5]} 23... Kf8 {[%clk 0:01:32.3]}
24. Qh8+ {[%clk 0:01:30.9]} 24... Ke7 {[%clk 0:01:29.1]} 0-1

[Event "*** Titled Tuesday 3|2 Blitz"]
[Site "Chess.com"]
[Date "2016.06.07"]
[Round "9"]
[White "1random"]
[Black "WanderingPuppet"]
[Result "0-1"]
[WhiteElo "2124"]
[BlackElo "2290"]
[TimeControl "180+2"]
[EndTime "18:50:44 PDT"]
[Termination "WanderingPuppet won by resignation"]

1. Nf3 {[%clk 0:02:59.3]} 1... Nf6 {[%clk 0:03:00.5]} 2. Rg1 {[%clk 0:02:59.1]}
2... g6 {[%clk 0:03:02.1]} 3. g4 {[%clk 0:02:59.2]} 3... d5 {[%clk 0:02:50.6]}
4. g5 {[%clk 0:02:59.4]} 4... Nfd7 {[%clk 0:02:47]} 5. d4 {[%clk 0:02:57.2]}
5... Bg7 {[%clk 0:02:45.8]} 6. h4 {[%clk 0:02:54.2]} 6... Nb6 {[%clk 0:02:38.6]}
7. c3 {[%clk 0:02:51.3]} 7... Nc6 {[%clk 0:02:38.6]} 8. Bf4 {[%clk 0:02:51.9]}
8... Bf5 {[%clk 0:02:39]} 9. e3 {[%clk 0:02:52]} 9... a6 {[%clk 0:02:30.6]} 10.
Nbd2 {[%clk 0:02:50]} 10... Qd7 {[%clk 0:02:31.3]} 11. h5 {[%clk 0:02:42.8]}
11... gxh5 {[%clk 0:02:28.3]} 12. Nh4 {[%clk 0:02:42]} 12... Bg6 {[%clk
0:02:21.8]} 13. a4 {[%clk 0:02:30.7]} 13... Na5 {[%clk 0:02:18.6]} 14. b4 {[%clk
0:02:15.7]} 14... Nac4 {[%clk 0:02:13.1]} 15. Nb3 {[%clk 0:02:16]} 15... Nxa4
{[%clk 0:02:02.1]} 16. Bxc4 {[%clk 0:02:06.5]} 16... dxc4 {[%clk 0:01:58.3]} 17.
Na5 {[%clk 0:02:07.5]} 17... Nxc3 {[%clk 0:01:47.4]} 18. Qc1 {[%clk 0:02:08.6]}
18... Nd5 {[%clk 0:01:39.4]} 19. Nxb7 {[%clk 0:02:04]} 19... Nxf4 {[%clk
0:01:10.3]} 20. exf4 {[%clk 0:01:51.7]} 20... Qxd4 {[%clk 0:01:01.6]} 21. Ra2
{[%clk 0:01:48.5]} 21... Bd3 {[%clk 0:00:37]} 22. Nc5 {[%clk 0:01:44.9]} 22...
Qc3+ {[%clk 0:00:31]} 23. Qd2 {[%clk 0:01:37.1]} 23... O-O {[%clk 0:00:22.1]}
24. Nxa6 {[%clk 0:01:29.7]} 24... Qb3 {[%clk 0:00:15.3]} 0-1